fUST/lending_fUST_20250622
["ID","MTS","AMOUNT","RATE_DAILY","PERIOD"]
[366868224,1750529461597,-523.28,0.00022776,2]
[366868225,1750529461606,-460.0,0.00022776,2]
[366868226,1750529461615,-711.75,0.00022776,2]
[366868227,1750529461625,-460.0,0.00022776,2]
[366868228,1750529461634,-460.0,0.00022776,2]
[366868229,1750529461644,-460.0,0.00022776,2]
[366868230,1750529461654,-601.60551464,0.00022776,2]
[366868231,1750529461663,-460.0,0.00022776,2]
[366868232,1750529461672,-460.0,0.00022776,2]
[366868233,1750529461681,-8458.2517508,0.00022796,2]
[366868234,1750529461690,-8371.88562729,0.00022796,2]
[366868235,1750529461964,225.728173,0.00013699,2]
[366868236,1750529461982,-225.728173,0.00020187,2]
[366868237,1750529461992,-24.264851,0.00021917,2]
[366868238,1750529462005,-435.735149,0.00021917,2]
[366868239,1750529462015,-460.0,0.00021917,2]
[366868240,1750529462025,-461.8296285,0.00021917,2]
[366868241,1750529462035,-460.0,0.00021917,2]
[366868242,1750529462044,-463.63106265,0.00021917,2]
[366868243,1750529462054,-8097.08801471,0.00022796,2]
[366868244,1750529462066,-6156.16878215,0.00022796,2]
[366868245,1750529462077,-12549.17366507,0.00022797,7]
[366868246,1750529462086,-160.0,0.00022797,7]
[366868247,1750529462096,-1302.28860932,0.00022797,7]
[366868248,1750529462106,-846.23824438,0.000228,7]
[366868249,1750529462115,-500.0,0.00022807,2]
[366868250,1750529462124,-443.58519938,0.0002281,2]
[366868251,1750529462134,-261.05891665,0.0002281,2]
[366868252,1750529462144,-2069.25312419,0.00022891,2]
[366868253,1750529462154,-3000.0,0.000229,2]
[366868254,1750529462163,-3000.0,0.0002291,2]
[366868255,1750529462173,-1496.31157884,0.00022912,2]
[366868256,1750529462184,-2414.14701996,0.0002292,2]
[366868257,1750529462196,-585.85298004,0.0002292,2]
[366868258,1750529462206,-3000.0,0.0002293,2]
[366868259,1750529462218,-151.0,0.0002293,7]
[366868260,1750529462228,-1000.0,0.00022939,2]
[366868261,1750529462239,-460.0,0.00022939,2]
[366868262,1750529462249,-460.0,0.00022939,2]
[366868263,1750529462259,-460.0,0.00022939,2]
[366868264,1750529462269,-460.0,0.00022939,2]
[366868265,1750529462279,-483.45345205,0.00022939,2]
[366868266,1750529462289,-3000.0,0.0002294,2]
[366868267,1750529462299,-460.0,0.0002294,2]
[366868268,1750529462309,-297.1,0.0002294,2]
[366868269,1750529462318,-460.0,0.0002294,2]
[366868270,1750529462327,-460.0,0.0002294,2]
[366868271,1750529462337,-460.0,0.0002294,2]
[366868272,1750529462347,-473.84,0.0002294,2]
[366868273,1750529462358,-460.0,0.0002294,2]
[366868274,1750529462367,-460.0,0.0002294,2]
[366868275,1750529462376,-1199.35,0.0002294,2]
[366868276,1750529462385,-1199.35,0.0002294,2]
[366868277,1750529462395,-460.0,0.0002294,2]
[366868278,1750529462405,-460.0,0.0002294,2]
[366868279,1750529462414,-1232.2,0.0002294,2]
[366868280,1750529462423,-1232.2,0.0002294,2]
[366868281,1750529462432,-460.34,0.0002294,2]
[366868282,1750529462442,-460.34,0.0002294,2]
[366868283,1750529462451,-591.94,0.0002294,2]
[366868284,1750529462462,-591.94,0.0002294,2]
[366868285,1750529462472,-460.0,0.0002294,2]
[366868286,1750529462482,-460.0,0.0002294,2]
[366868287,1750529462491,-615.79,0.0002294,2]
[366868288,1750529462500,-615.79,0.0002294,2]
[366868289,1750529462510,-259.4,0.0002294,2]
[366868290,1750529462519,-1494.04,0.0002294,2]
[366868291,1750529462529,-1494.04,0.0002294,2]
[366868292,1750529462538,-1457.65,0.0002294,2]
[366868293,1750529462547,-1457.65,0.0002294,2]
[366868294,1750529462556,-460.0,0.0002294,2]
[366868295,1750529462566,-460.0,0.0002294,2]
[366868296,1750529462575,-460.0,0.0002294,2]
[366868297,1750529462585,-460.0,0.0002294,2]
[366868298,1750529462594,-1198.66,0.0002294,2]
[366868299,1750529462604,-2223.14,0.0002294,2]
[366868300,1750529462614,-2223.14,0.0002294,2]
[366868301,1750529462623,-1198.66,0.0002294,2]
[366868302,1750529462633,-460.0,0.0002294,2]
[366868303,1750529462642,-460.0,0.0002294,2]
[366868304,1750529462651,-460.0,0.0002294,2]
[366868305,1750529462661,-460.0,0.0002294,2]
[366868306,1750529462669,-460.0,0.0002294,2]
[366868307,1750529462678,-205.98443742,0.0002294,2]
[366868308,1750529462690,-254.01556258,0.0002294,2]
[366868309,1750529462702,-740.6,0.0002294,2]
[366868310,1750529462712,-740.6,0.0002294,2]
[366868311,1750529462721,-617.56,0.0002294,2]
[366868312,1750529462730,-460.0,0.0002294,2]
[366868313,1750529462740,-617.56,0.0002294,2]
[366868314,1750529462749,-460.0,0.0002294,2]
[366868315,1750529462759,-528.46077935,0.0002294,2]
[366868316,1750529462767,-460.0,0.0002294,2]
[366868317,1750529462778,-547.54374146,0.0002294,2]
[366868318,1750529462788,-523.28,0.0002294,2]
[366868319,1750529462797,-71.41792085,0.0002294,2]
[366868320,1750529462809,-451.86207915,0.0002294,2]
[366868321,1750529462818,-548.88643572,0.0002294,2]
[366868322,1750529462827,-711.75,0.0002294,2]
[366868323,1750529462835,-711.75,0.0002294,2]
[366868324,1750529462844,-460.0,0.0002294,2]
[366868325,1750529462853,-460.0,0.0002294,2]
[366868326,1750529462863,-460.0,0.0002294,2]
[366868327,1750529462872,-460.0,0.0002294,2]
[366868328,1750529462882,-321.61813899,0.0002294,2]
[366868329,1750529462891,-226.66770349,0.0002294,2]
[366868330,1750529462901,-460.0,0.0002294,2]
[366868331,1750529462911,-460.0,0.0002294,2]
[366868332,1750529462921,-3000.0,0.0002295,2]
[366868333,1750529462930,-3000.0,0.0002296,2]
[366868334,1750529462939,-152.28029304,0.00022969,8]
[366868335,1750529462951,-320.17165751,0.00022969,8]
[366868336,1750529463040,-460.0,0.00021917,2]
[366868337,1750529463052,-829.83665877,0.00022969,8]
[366868338,1750529463063,-3000.0,0.0002297,2]
[366868339,1750529463073,-3000.0,0.0002298,2]
[366868340,1750529463083,-3000.0,0.0002299,2]
[366868341,1750529463093,-3000.0,0.00023,2]
[366868342,1750529463103,-3000.0,0.0002301,2]
[366868343,1750529463113,-500.0,0.00023012,9]
[366868344,1750529463123,-500.0,0.00023013,2]
[366868345,1750529463132,-168.0,0.00023014,7]
[366868346,1750529463142,-170.0,0.00023014,7]
[366868347,1750529463152,-3000.0,0.0002302,2]
[366868348,1750529463161,-3000.0,0.0002303,2]
[366868349,1750529463171,-3000.0,0.0002304,2]
[366868350,1750529463180,-3000.0,0.0002305,2]
[366868351,1750529463193,-3000.0,0.0002306,2]
[366868352,1750529463203,-300.32820398,0.00023068,2]
[366868353,1750529463214,-223.86930729,0.00023068,2]
[366868354,1750529463224,-1500.0,0.00023068,2]
[366868355,1750529463234,-1500.0,0.00023068,2]
[366868356,1750529463244,-1800.0,0.00023068,2]
[366868357,1750529463253,-1500.0,0.00023068,2]
[366868358,1750529463263,-1016.17674237,0.00023068,2]
[366868359,1750529463273,-1500.0,0.00023068,2]
[366868360,1750529463284,-1500.0,0.00023068,2]
[366868361,1750529463389,-1500.0,0.00023068,2]
[366868362,1750529463401,-3000.0,0.0002307,2]
[366868363,1750529463413,-3000.0,0.0002308,2]
[366868364,1750529463423,-3000.0,0.0002309,2]
[366868365,1750529463435,-3000.0,0.000231,2]
[366868366,1750529463446,-3000.0,0.0002311,2]
[366868367,1750529463456,-3000.0,0.0002312,2]
[366868368,1750529463468,-3000.0,0.0002313,2]
[366868369,1750529463479,-665.3400172,0.0002314,2]
[366868372,1750529501696,-163.45706847,0.00019244,2]
[366868373,1750529583193,-222.842108,0.00019178,2]
[366868374,1750529583218,-27.157892,0.00019243,2]
[366868376,1750529607423,1097.748982,0.00018848,2]
[366868377,1750529612521,-268.0861953,0.00019243,2]
[366868378,1750529628257,5000.0,0.00019102,2]
[366868379,1750529637646,24900.0,0.00019075,2]
[366868380,1750529638252,-4.7559127,0.00019243,2]
[366868381,1750529638275,-172.95726921,0.00019244,2]
[366868382,1750529643560,5000.0,0.00019102,2]
[366868383,1750529658769,5000.0,0.00019102,2]
[366868384,1750529660911,-217.64611108,0.00019244,2]
[366868385,1750529675057,2179.16389234,0.00019102,2]
[366868386,1750529705751,-160.0,0.00019243,2]
[366868387,1750529719440,160.0,0.00019102,2]
[366868388,1750529721676,-154.2000238,0.00019243,2]
[366868389,1750529759472,-219.63599433,0.00019243,2]
[366868390,1750529761099,579.3581043,0.00018685,2]
[366868391,1750529796414,200.0,0.00022191,30]
[366868392,1750529910018,-251.41184371,0.00019178,2]
[366868394,1750530000418,-122.58815629,0.00019178,2]
[366868395,1750530000443,-44.75840231,0.00019221,2]
[366868396,1750530197694,5000.0,0.00019102,2]
[366868397,1750530198346,-133.18279676,0.00019221,2]
[366868398,1750530279826,3373.3043452,0.00018897,2]
[366868399,1750530315302,3301.84523615,0.00019102,2]
[366868401,1750530489660,309.98879157,0.00019102,2]
[366868411,1750530561268,238.524831,0.00013699,2]
[366868412,1750530572422,10000.0,0.00018727,2]
[366868450,1750530632331,-300.0,0.00019242,2]
[366868452,1750530632342,-255.00371477,0.00019242,2]
[366868455,1750530632354,-44.99628523,0.00019242,2]
[366868457,1750530632363,-300.0,0.00019242,2]
[366868459,1750530632372,-464.77563922,0.00019242,2]
[366868461,1750530632388,-735.22436078,0.00019242,2]
[366868463,1750530632397,-300.0,0.00019243,2]
[366868465,1750530632407,-837.19760438,0.00019306,2]
[366868467,1750530632416,-777.96181003,0.00019406,2]
[366868469,1750530632426,-777.96181003,0.00019406,2]
[366868471,1750530632436,-777.96181003,0.00019406,2]
[366868473,1750530632445,-777.96181003,0.00019406,2]
[366868475,1750530632455,-777.96181003,0.00019406,2]
[366868476,1750530632465,-777.96181003,0.00019406,2]
[366868477,1750530632474,-777.96181003,0.00019406,2]
[366868479,1750530632484,-777.96181003,0.00019406,2]
[366868481,1750530632494,-777.96181003,0.00019406,2]
[366868483,1750530632504,-527.22329621,0.00019406,2]
[366868485,1750530632518,-250.73851382,0.00019406,2]
[366868486,1750530632528,-82.59421953,0.00019406,2]
[366868487,1750530632540,-695.3675905,0.00019406,2]
[366868488,1750530632549,-777.96181003,0.00019406,2]
[366868489,1750530632559,-777.96181003,0.00019406,2]
[366868490,1750530632569,-777.96181003,0.00019406,2]
[366868491,1750530632579,-777.96181003,0.00019406,2]
[366868492,1750530632589,-78.52932313,0.00019406,2]
[366868493,1750530632601,-421.47067687,0.00019406,2]
[366868494,1750530632611,-95.59831313,0.00019406,2]
[366868529,1750530638005,-500.0,0.00019405,2]
[366868531,1750530638015,-819.62203363,0.00019405,2]
[366868533,1750530638025,-819.62203363,0.00019405,2]
[366868535,1750530638035,-472.19849563,0.00019405,2]
[366868537,1750530638047,-27.80150437,0.00019405,2]
[366868539,1750530638057,-819.62203363,0.00019405,2]
[366868541,1750530638067,-819.62203363,0.00019405,2]
[366868543,1750530638077,-819.62203363,0.00019405,2]
[366868545,1750530638087,-819.62203363,0.00019405,2]
[366868547,1750530638097,-534.19708725,0.00019405,2]
[366868549,1750530638109,-285.42494638,0.00019405,2]
[366868551,1750530638118,-14.57505362,0.00019405,2]
[366868597,1750530638544,-805.04698001,0.00019405,2]
[366868599,1750530638554,-819.62203363,0.00019405,2]
[366868601,1750530638564,-564.15040134,0.00019405,2]
[366868603,1750530638573,-819.62203363,0.00019405,2]
[366868605,1750530638583,-819.62203363,0.00019405,2]
[366868607,1750530638593,-819.62203363,0.00019405,2]
[366868609,1750530638602,-819.62203363,0.00019405,2]
[366868611,1750530638612,-603.12957201,0.00019405,2]
[366868694,1750530640242,-216.49246162,0.00019405,2]
[366868695,1750530640252,-243.50753838,0.00019405,2]
[366868696,1750530640298,-398.076,0.00019405,2]
[366868698,1750530640642,-77.86770208,0.00019405,2]
[366868725,1750530659019,-154.15271675,0.00019404,2]
[366868726,1750530663629,-145.84728325,0.00019404,2]
[366868727,1750530663653,-6.67174784,0.00019404,2]
[366868728,1750530663922,268.0861953,0.00019086,2]
[366868729,1750530665149,1332.9330046,0.00019102,2]
[366868730,1750530666627,-160.58177857,0.00019404,2]
[366868733,1750530680893,313.10080966,0.00019102,2]
[366868734,1750530818668,-182.84925607,0.00019178,2]
[366868735,1750530834244,24900.0,0.00018577,2]
[366868736,1750531004859,666.0,0.00018403,2]
[366868737,1750531011536,187.87980688,0.00018432,2]
[366868738,1750531053544,727.021666,0.00018555,2]
[366868739,1750531054157,-30.51428393,0.00019178,2]
[366868740,1750531075812,1149.60321407,0.00019102,2]
[366868741,1750531304379,222.0415251,0.000184,2]
[366868742,1750531328296,411.7517878,0.00018662,2]
[366868743,1750531328606,411.7517879,0.00018939,2]
[366868745,1750531509861,163.92,0.00013699,2]
[366868746,1750531510434,163.92,0.00013699,2]
[366868747,1750531510674,163.92,0.00013699,2]
[366868748,1750531510982,163.95574605,0.00013699,2]
[366868749,1750531514314,3261.09288913,0.00019102,2]
[366868750,1750531569175,262.447124,0.00013699,2]
[366868753,1750531717181,9497.4292941,0.00018377,2]
[366868754,1750531804346,-196.19840485,0.00019178,2]
[366868755,1750531833752,24900.0,0.00018375,2]
[366868782,1750531837067,-7.15751015,0.00019178,2]
[366868784,1750531837077,-470.44479541,0.00019273,2]
[366868786,1750531837087,-551.45356152,0.00019371,2]
[366868788,1750531837103,-231.226875,0.00019371,2]
[366868791,1750531837112,-500.0,0.00019371,2]
[366868793,1750531837123,-782.68043652,0.00019371,2]
[366868795,1750531837132,-782.68043652,0.00019371,2]
[366868797,1750531837142,-782.68043652,0.00019371,2]
[366868799,1750531837151,-782.68043652,0.00019371,2]
[366868801,1750531837161,-782.68043652,0.00019371,2]
[366868803,1750531837170,-782.68043652,0.00019371,2]
[366868805,1750531837179,-782.68043652,0.00019371,2]
[366868807,1750531837189,-782.68043652,0.00019371,2]
[366868808,1750531837198,-500.0,0.00019371,2]
[366868811,1750531837208,-782.68043652,0.00019371,2]
[366868812,1750531837218,-782.68043652,0.00019371,2]
[366868815,1750531837228,-500.0,0.00019371,2]
[366868817,1750531837237,-169.94025496,0.00019371,2]
[366868819,1750531837246,-782.68043652,0.00019371,2]
[366868821,1750531837256,-782.68043652,0.00019371,2]
[366868823,1750531837266,-782.68043652,0.00019371,2]
[366868825,1750531837275,-782.68043652,0.00019371,2]
[366868826,1750531837283,-500.0,0.00019371,2]
[366868828,1750531837293,-500.0,0.00019371,2]
[366868831,1750531837303,-500.0,0.00019371,2]
[366868832,1750531837312,-154.79886575,0.00019371,2]
[366868835,1750531837323,-292.28382251,0.00019371,2]
[366868837,1750531837332,-500.0,0.00019371,2]
[366868838,1750531837341,-170.2386775,0.00019371,2]
[366868840,1750531837350,-500.0,0.00019371,2]
[366868842,1750531837360,-500.0,0.00019371,2]
[366868844,1750531837369,-219.15084565,0.00019371,2]
[366868846,1750531837384,-385.89413516,0.00019371,2]
[366868849,1750531837393,-500.0,0.00019371,2]
[366868850,1750531837403,-500.0,0.00019371,2]
[366868852,1750531837412,-500.0,0.00019371,2]
[366868854,1750531837422,-782.68043652,0.00019371,2]
[366868856,1750531837431,-500.0,0.00019371,2]
[366868868,1750531837539,-344.72376006,0.00019371,2]
[366868870,1750531837548,-500.0,0.00019371,2]
[366868872,1750531837558,-500.0,0.00019371,2]
[366868874,1750531837567,-500.0,0.00019371,2]
[366868876,1750531837577,-500.0,0.00019371,2]
[366868878,1750531837587,-500.0,0.00019371,2]
[366868880,1750531837596,-500.0,0.00019371,2]
[366868882,1750531837605,-500.0,0.00019371,2]
[366868884,1750531837615,-500.0,0.00019371,2]
[366868886,1750531837624,-500.0,0.00019371,2]
[366868888,1750531837633,-500.0,0.00019371,2]
[366868890,1750531837642,-500.0,0.00019371,2]
[366868892,1750531837651,-634.92411276,0.00019371,2]
[366868894,1750531837662,-500.0,0.00019371,2]
[366868896,1750531837671,-500.0,0.00019371,2]
[366868898,1750531837681,-500.0,0.00019371,2]
[366868900,1750531837691,-500.0,0.00019371,2]
[366868902,1750531837700,-500.0,0.00019371,2]
[366868904,1750531837710,-500.0,0.00019371,2]
[366868906,1750531837720,-500.0,0.00019371,2]
[366868908,1750531837730,-500.0,0.00019371,2]
[366868910,1750531837740,-500.0,0.00019371,2]
[366868912,1750531837749,-500.0,0.00019371,2]
[366868914,1750531837759,-500.0,0.00019371,2]
[366868916,1750531837769,-500.0,0.00019371,2]
[366868918,1750531837779,-500.0,0.00019371,2]
[366868921,1750531837789,-500.0,0.00019371,2]
[366868923,1750531837799,-500.0,0.00019371,2]
[366868926,1750531837809,-500.0,0.00019371,2]
[366868928,1750531837819,-500.0,0.00019371,2]
[366868931,1750531837829,-500.0,0.00019371,2]
[366868933,1750531837839,-500.0,0.00019371,2]
[366868937,1750531837849,-500.0,0.00019371,2]
[366868940,1750531837859,-500.0,0.00019371,2]
[366868943,1750531837869,-782.68043652,0.00019371,2]
[366868946,1750531837879,-499.77042139,0.00019371,2]
[366868949,1750531837888,-500.0,0.00019371,2]
[366868951,1750531837898,-500.0,0.00019371,2]
[366868953,1750531837908,-500.0,0.00019371,2]
[366868955,1750531837918,-500.0,0.00019371,2]
[366868957,1750531837927,-500.0,0.00019371,2]
[366868959,1750531837937,-500.0,0.00019371,2]
[366868961,1750531837946,-500.0,0.00019371,2]
[366868963,1750531837956,-456.851229,0.00019371,2]
[366868965,1750531837966,-500.0,0.00019371,2]
[366868967,1750531837976,-500.0,0.00019371,2]
[366868969,1750531837985,-500.0,0.00019371,2]
[366868971,1750531837995,-500.0,0.00019371,2]
[366868973,1750531838005,-500.0,0.00019371,2]
[366868975,1750531838015,-500.0,0.00019371,2]
[366868977,1750531838024,-500.0,0.00019371,2]
[366868979,1750531838034,-500.0,0.00019371,2]
[366868981,1750531838043,-500.0,0.00019371,2]
[366868983,1750531838053,-500.0,0.00019371,2]
[366868985,1750531838062,-500.0,0.00019371,2]
[366868987,1750531838071,-500.0,0.00019371,2]
[366868989,1750531838081,-500.0,0.00019371,2]
[366868991,1750531838090,-500.0,0.00019371,2]
[366868993,1750531838099,-500.0,0.00019371,2]
[366868995,1750531838109,-453.91267099,0.00019371,2]
[366868997,1750531838118,-500.0,0.00019371,2]
[366868999,1750531838127,-500.0,0.00019371,2]
[366869001,1750531838136,-500.0,0.00019371,2]
[366869003,1750531838146,-500.0,0.00019371,2]
[366869005,1750531838155,-500.0,0.00019371,2]
[366869007,1750531838165,-500.0,0.00019371,2]
[366869009,1750531838174,-300.0,0.00019371,2]
[366869011,1750531838184,-300.0,0.00019371,2]
[366869013,1750531838194,-300.0,0.00019371,2]
[366869015,1750531838203,-300.0,0.00019371,2]
[366869017,1750531838213,-300.0,0.00019371,2]
[366869019,1750531838222,-1200.0,0.00019371,2]
[366869021,1750531838231,-8740.7022949,0.00019372,2]
[366869023,1750531838240,-16163.1192749,0.00019372,2]
[366869025,1750531838249,-501.82835657,0.00019373,2]
[366869027,1750531838259,-500.0,0.00019373,2]
[366869029,1750531838268,-620.94931164,0.00019373,2]
[366869031,1750531838277,-500.0,0.00019373,2]
[366869033,1750531838286,-500.61685204,0.00019373,2]
[366869035,1750531838294,-500.0,0.00019373,2]
[366869037,1750531838304,-502.66042553,0.00019373,2]
[366869039,1750531838313,-500.0,0.00019373,2]
[366869041,1750531838322,-500.0,0.00019373,2]
[366869042,1750531838331,-500.0,0.00019373,2]
[366869043,1750531838340,-500.0,0.00019373,2]
[366869044,1750531838349,-500.0,0.00019373,2]
[366869045,1750531838358,-500.0,0.00019373,2]
[366869046,1750531838367,-500.0,0.00019373,2]
[366869047,1750531838380,-315.09636162,0.00019373,2]
[366869048,1750531838389,-500.0,0.00019373,2]
[366869049,1750531838398,-500.0,0.00019373,2]
[366869050,1750531838407,-503.49346312,0.00019373,2]
[366869051,1750531838416,-500.0,0.00019373,2]
[366869052,1750531838425,-500.0,0.00019373,2]
[366869053,1750531838434,-500.0,0.00019373,2]
[366869054,1750531838443,-500.0,0.00019373,2]
[366869055,1750531838452,-156.587,0.00019385,2]
[366869056,1750531838462,-151.0,0.00019396,2]
[366869057,1750531838471,-217.747,0.00019397,2]
[366869058,1750531838480,-160.0,0.00019406,2]
[366869059,1750531838489,-151.0,0.00019423,2]
[366869060,1750531838498,-209.28459386,0.00019451,2]
[366869061,1750531838508,-500.0,0.00019473,2]
[366869062,1750531838517,-501.39040118,0.00019473,2]
[366869063,1750531838526,-500.0,0.00019473,2]
[366869064,1750531838535,-504.15669977,0.000195,2]
[366869065,1750531838545,-411.7517878,0.0001967,2]
[366869066,1750531838554,-470.4447954,0.00019854,2]
[366869067,1750531838563,-225.88246254,0.00019862,2]
[366869068,1750531838572,-671.40760712,0.00019921,2]
[366869069,1750531838581,-500.0,0.00019921,2]
[366869070,1750531838591,-325.28327851,0.00019921,2]
[366869071,1750531838600,-569.40937124,0.00019921,2]
[366869073,1750531838609,-1000.0,0.00019921,2]
[366869075,1750531838618,-1000.0,0.00019921,2]
[366869077,1750531838627,-1000.0,0.00019921,2]
[366869079,1750531838637,-1000.0,0.00019921,2]
[366869081,1750531838646,-1000.0,0.00019921,2]
[366869083,1750531838655,-1000.0,0.00019921,2]
[366869085,1750531838664,-1000.0,0.00019921,2]
[366869087,1750531838675,-1000.0,0.00019921,2]
[366869089,1750531838684,-1000.0,0.00019921,2]
[366869091,1750531838693,-324.5513043,0.00019921,2]
[366869093,1750531838702,-439.26,0.0001999,3]
[366869095,1750531838712,-12872.7260634,0.0002,2]
[366869097,1750531838721,-6385.01294797,0.0002,2]
[366869099,1750531838731,-14899.21576981,0.0002,2]
[366869101,1750531838740,-2862.51619892,0.0002,2]
[366869103,1750531838750,-1185.75712056,0.0002,2]
[366869105,1750531838759,-361.07348892,0.0002,2]
[366869107,1750531838768,-554.42837408,0.0002,2]
[366869109,1750531838778,-7611.03138944,0.0002,7]
[366869111,1750531838786,-1169.08455392,0.0002,2]
[366869113,1750531838795,-281.91315515,0.00020021,2]
[366869115,1750531838805,-1000.0,0.00020021,2]
[366869117,1750531838814,-262.447124,0.00020187,2]
[366869119,1750531838823,-470.4447954,0.00020436,2]
[366869121,1750531838833,-500.0,0.00020468,2]
[366869123,1750531838842,-1500.0,0.00020468,2]
[366869125,1750531838851,-1000.0,0.00020468,2]
[366869127,1750531838860,-850.24060396,0.00020468,2]
[366869129,1750531838869,-1500.0,0.00020468,2]
[366869131,1750531838879,-210.44328633,0.00020468,2]
[366869133,1750531838888,-1000.0,0.00020468,2]
[366869135,1750531838897,-1500.0,0.00020468,2]
[366869137,1750531838906,-500.0,0.00020468,2]
[366869139,1750531838915,-500.0,0.00020547,7]
[366869141,1750531838924,-500.0,0.00020548,2]
[366869143,1750531838933,-500.0,0.00020548,2]
[366869145,1750531838943,-500.0,0.00020548,2]
[366869147,1750531838953,-500.0,0.00020548,2]
[366869149,1750531838963,-377.81782921,0.00020548,2]
[366869151,1750531838972,-921.47928408,0.00020568,2]
[366869153,1750531838981,-4495.57,0.000206,2]
[366869155,1750531838990,-1551.45,0.000206,2]
[366869157,1750531839000,-216.88311468,0.00020714,2]
[366869159,1750531839009,-160.0,0.00020776,2]
[366869161,1750531839018,-5106.261729,0.00021,2]
[366869163,1750531839027,-2000.0,0.00021016,2]
[366869165,1750531839036,-1471.75859968,0.00021016,2]
[366869167,1750531839046,-470.4447954,0.00021017,2]
[366869169,1750531839055,-500.0,0.00021095,8]
[366869171,1750531839064,-1867.10330516,0.000211,4]
[366869173,1750531839074,-1867.10330499,0.000211,4]
[366869175,1750531839083,-1867.10330499,0.000211,4]
[366869177,1750531839092,-1867.10330499,0.000211,4]
[366869179,1750531839101,-1867.10330499,0.000211,4]
[366869181,1750531839110,-1867.10330499,0.000211,4]
[366869183,1750531839119,-420.0,0.00021106,2]
[366869185,1750531839128,-420.0,0.00021106,2]
[366869187,1750531839137,-420.0,0.00021106,2]
[366869188,1750531839146,-420.0,0.00021106,2]
[366869190,1750531839156,-1867.10330499,0.00021141,4]
[366869191,1750531839165,-1680.0,0.00021208,2]
[366869192,1750531839174,-2047.48,0.00021311,2]
[366869193,1750531839184,-1867.10330499,0.00021348,5]
[366869194,1750531839193,-247.86641678,0.00021355,2]
[366869195,1750531839202,-250.0,0.00021434,2]
[366869196,1750531839211,-1867.10330499,0.00021555,5]
[366869197,1750531839220,-2500.0,0.00021564,2]
[366869198,1750531839229,-470.4447954,0.00021598,2]
[366869199,1750531839239,-500.0,0.00021643,9]
[366869200,1750531839248,-386.90398495,0.00021676,2]
[366869201,1750531839257,-84007.56398396,0.00021698,2]
[366869202,1750531839271,-109710.16370069,0.00021698,2]
[366869203,1750531839281,-7620.39078176,0.00021698,2]
[366869204,1750531839290,-151.0,0.000217,4]
[366869205,1750531839300,-1867.10330499,0.00021762,5]
[366869206,1750531839309,-2617.58815717,0.0002181,2]
[366869207,1750531839318,-7278.26557065,0.00021852,2]
[366869208,1750531839327,-168.0,0.00021904,2]
[366869209,1750531839337,-1000.0,0.00021915,2]
[366869210,1750531839346,-1000.0,0.00021916,2]
[366869211,1750531839355,-1000.0,0.00021916,2]
[366869212,1750531839364,-1000.0,0.00021916,2]
[366869213,1750531839375,-1000.0,0.00021916,2]
[366869214,1750531839386,-200.0,0.00021916,2]
[366869215,1750531839395,-200.52773835,0.00021916,2]
[366869216,1750531839405,-465.84350371,0.00021917,2]
[366869217,1750531839493,-241.12684815,0.00021917,2]
[366869218,1750531839504,-218.62961697,0.00021917,2]
[366869219,1750531839514,-472.55842908,0.00021917,2]
[366869220,1750531839524,-462.73509186,0.00021917,2]
[366869221,1750531839534,-460.0,0.00021917,2]
[366869222,1750531839545,-460.0,0.00021917,2]
[366869224,1750531839554,-460.0,0.00021917,2]
[366869225,1750531839564,-400.0,0.00021917,2]
[366869226,1750531839574,-460.0,0.00021917,2]
[366869228,1750531839584,-472.07841007,0.00021917,2]